Workbook

Sheet User Guide
A1: Advanced Nuclear Fuel LCOF Estimation Tool
A2: User Guide
A3: This tool is to enable preliminary cost of fuel estimates for new fuel concepts using spent nuclear fuel (SNF) as the nuclear materials source.
A5: Reminder: Use of this tool and submission in the application package is OPTIONAL.
A6: When choosing to use this tool, applicants should be aware of the following key assumptions, both which may lead to underestimation of fuel costs:
A7: 1) There are no costs associated with acquiring SNF feedstock.
A8: 2) 100% of the limiting nuclear material in the SNF feedstock can be recovered. This minimizes the quantity of SNF mass needed to meet nuclear material input requirements and the mass to be reprocessed, which minimizes the cost of reprocessing (also assuming that reprocessing cost is only a function of the mass to be reprocessed). The limiting nuclear material is the lowest ratio of feedstock fraction to fuel mass fraction. For example, Pu (feedstock fraction = 0.01 and fuel mass fraction = 0.20) is the limiting material in the TRU Fuel References used here.
A10: Requirements for data justification are highlighted in red.
A12: START HERE:
A13: Data needs
A14: In order to use this tool, applicants will need to be able to estimate the following for their proposed fuel:
A15: Fuel composition
A16: Fuel mass fraction - U (kg U/kg fuel, the fraction of U in the fuel by mass)
A17: Fuel mass fraction - Pu (kg Pu/kg fuel, the fraction of Pu in the fuel by mass)
A18: Fuel mass fraction - Other nuclear materials (kg other nuclear material/kg fuel, the fraction of other nuclear material in the fuel by mass)
A19: Feedstock composition, where feedstock = spent fuel or other nuclear waste material that will be reprocessed for use in fuel fabrication
A20: Feedstock fraction - U (kg U/kg SNF feedstock, the fraction of U in the feedstock by mass)
A21: Feedstock fraction - Pu (kg Pu/kg SNF feedstock, the fraction of Pu in the feedstock by mass)
A22: Feedstock fraction - Other nuclear material (kg other nuclear material/kg SNF feedstock, the fraction of other nuclear material in the feedstock by mass)
A23: Fuel specifications
A24: Total fuel in reactor core (kg fuel/core)
A25: Fuel burnup (GWd/ton of fuel)
A26: Thermal efficiency (percent of burnup energy converted to electricity)
A27: System costs
A28: Recycled SNF storage (USD/ton of SNF stored)
A29: Reprocessing cost (USD/ton of heavy metal input)
A30: Fabrication cost (USD/ton of heavy metal input)
A31: Fabrication material efficiency (heavy metal output in fuel/heavy metal input to fabrication)
A32: Applicants may use the provided reference values during application if sufficient explanation for each is provided in the Notes.
A35: Data input
A36: Navigate to the User Input Model sheet.
A38: Edit cells that are highlighted in yellow.
A39: Provide a name for the proposed fuel.
A40: To access reference cost data specific to Metal or Ceramic Fuels using TRU feestocks, select the fuel type of interest from the pull down menu. Note: These data sets are just for reference and should not discourage applicants from proposing fuels outside these types.
A41: Fill in all values in the User Inputs table (Table 1) under the proposed fuel name.
A42: Use the Notes section to explain inputs, and cite sources for the values used if applicable. Add sheets to support additional calculations as needed and reference these in the Notes.
A43: If applicants plan to include nuclear materials in the proposed fuel other than U or Pu, they must provide additional details on this plan in the Notes.
A45: Reference data is in blue and can be used as a placeholder for any missing data.
A46: If applicants choose to use reference data in the results submitted to ARPA-E, they must provide an explanation for this choice (e.g., "We do not yet have data on this or sufficient process information to estimate").
A48: Calculated values for the proposed fuel are in Table 2. Feel free to probe the formulas in these cells to understand how each value is calculated from the input data.
A51: Results
A52: The Results sheet allows applicants to compare the cost of their proposed fuel to the cost of LEU and HALEU-based fuels. All of these costs are estimated from raw materials acquisition or SNF storage through fuel production only and do not include financing costs or discount rates.
A55: TRU fuel and fresh fuel reference data
A56: Feel free to explore the TRU Fuel References and Fresh Fuel References data sheets to understand the values and cost estimates used for the reference TRU fuel and fresh fuel.

Sheet User Input Model
A1: Advanced Nuclear Fuel LCOF Estimation Tool | G1: Key
A2: User Input Model | G2: User input fields
A3: Name for proposed fuel: | B3: Proposed TRU fuel | C3: <Enter your fuel name here | G3: Reference data sets
A4: Select a TRU Fuel Reference dataset: | B4: Metal fuel | C4: <Select from the reference datasets available | G4: Metal fuel
G5: Ceramic fuel
A6: 1) User inputs
A7: Value description | B7: Units | C7: =B3 -> Proposed TRU fuel | D7: Reference | E7: Notes
A8: Fuel mass fraction - U | B8: kg U/kg fuel | D8: ='TRU Fuel References'!C8 -> 0.7
A9: Fuel mass fraction - Pu | B9: kg Pu/kg fuel | D9: ='TRU Fuel References'!C9 -> 0.2
A10: Fuel mass fraction - Other nuclear material | B10: kg other/kg fuel | D10: 0
A11: Feedstock fraction - U | B11: kg U/kg SNF | D11: 0.95
A12: Feedstock fraction - Pu | B12: kg Pu/kg SNF | D12: 0.01
A13: Feedstock fraction - Other nuclear material | B13: kg other/kg SNF | D13: 0.04
A14: Total fuel in reactor core | B14: kg fuel/core | D14: 3010
A15: Recycled SNF storage | B15: USD/kg SNF | D15: ='TRU Fuel References'!C24 -> 1239.75
A16: Reprocessing | B16: USD/kg SNF | D16: ='TRU Fuel References'!C63 -> 2610
A17: Fabrication | B17: USD/kg HM | D17: =IF($B$4=$G$5,'TRU Fuel References'!C64,IF(B4=G4,'TRU Fuel References'!C27-'User Input Model'!D16,0)) -> 783
A18: Fabrication material efficiency | B18: material out/material in | D18: 0.9
A19: Fuel burnup | B19: GWd/ton | D19: 150
A20: Thermal efficiency | B20: percent | D20: 45
A22: 2) Calculations (Do not edit)
A23: Value description | B23: Units | C23: =B3 -> Proposed TRU fuel | D23: Reference | E23: Notes
A24: Fuel mass input - U | B24: kg U/core | C24: =C8*C14 -> 0 | D24: =D8*D14 -> 2107
A25: Fuel mass input - Pu | B25: kg Pu/core | C25: =C9*C14 -> 0 | D25: =D9*D14 -> 602
A26: Fuel mass input - Other nuclear material | B26: kg other/core | C26: =C10*C14 -> 0 | D26: =D10*D14 -> 0
A27: SNF needed to meet material input requirements | B27: kg SNF/kg fuel | C27: =IF(C9>0,IF(C10>0,MAX(C8/C11,C9/C12,C10/C13),MAX(C8/C11,C9/C12)),IF(C10>0,MAX(C10/C13,C8/C11),C8/C11)) ->  | D27: =D9/D12 -> 20
A28: HM mass to be reprocessed, lifetime | B28: kg SNF/core | C28: =C27*C14 ->  | D28: =D27*D14 -> 60200
A29: Recycled SNF storage, lifetime | B29: USD/core | C29: =C15*C28 ->  | D29: =D15*D28 -> 74632950
A30: Reprocessing, lifetime | B30: USD/core | C30: =C28*C16 ->  | D30: =D28*D16 -> 157122000
A31: Fabrication, lifetime | B31: USD/core | C31: =C17*SUM(C24:C26)/C18 ->  | D31: =D17*SUM(D24:D25)/D18 -> 2356830
A32: Energy production per core | B32: MWh/core | C32: =C19*C14*24*C20/100 -> 0 | D32: =D19*(D24+D25)/SUM(D8:D9)*24*D20/100 -> 4876200
A33: Total cost through fabrication | B33: USD/core | C33: =SUM(C29,C30,C31) ->  | D33: =SUM(D29,D30,D31) -> 234111780
A34: LCOF in 2025 dollars | B34: USD/MWh | C34: =C33/C32 ->  | D34: =D33/D32 -> 48.01111111
A36: Navigate to the Results sheet to compare the proposed TRU fuel cost to the cost of fresh LEU and HALEU-based fuels.

Sheet Results
A1: Advanced Nuclear Fuel LCOF Estimation Tool
A2: Tool Results
A3: Compare estimates of LCOF for the proposed TRU fuel to cost estimates for LEU and HALEU-based fuels
C5: Milling and mining | D5: Conversion | E5: Enrichment | F5: Recycled SNF storage | G5: Reprocessing | H5: Fabrication | I5: Total
A6: Fresh Fuel References | B6: LEU | C6: ='Fresh Fuel References'!C16/'Fresh Fuel References'!C26 -> 5.048148148 | D6: ='Fresh Fuel References'!C18/'Fresh Fuel References'!C26 -> 0.6834877083 | E6: ='Fresh Fuel References'!C21/'Fresh Fuel References'!C26 -> 3.615753013 | H6: ='Fresh Fuel References'!C23/'Fresh Fuel References'!C26 -> 1.460357143 | I6: =SUM(C6:H6) -> 10.80774601
B7: U-Zr HALEU | C7: ='Fresh Fuel References'!C36/'Fresh Fuel References'!C46 -> 4.511111111 | D7: ='Fresh Fuel References'!C38/'Fresh Fuel References'!C46 -> 0.60316375 | E7: ='Fresh Fuel References'!C41/'Fresh Fuel References'!C46 -> 14.97361111 | H7: ='Fresh Fuel References'!C43/'Fresh Fuel References'!C46 -> 0.3333333333 | I7: =SUM(C7:H7) -> 20.42121931
B8: Ceramic HALEU | C8: ='Fresh Fuel References'!C56/'Fresh Fuel References'!C67 -> 4.511111111 | D8: ='Fresh Fuel References'!C58/'Fresh Fuel References'!C67 -> 0.60316375 | E8: ='Fresh Fuel References'!C61/'Fresh Fuel References'!C67 -> 14.97361111 | H8: ='Fresh Fuel References'!C64/'Fresh Fuel References'!C67 -> 8.780555556 | I8: =SUM(C8:H8) -> 28.86844153
A9: ='User Input Model'!B3 -> Proposed TRU fuel | F9: ='User Input Model'!C29/'User Input Model'!C32 ->  | G9: ='User Input Model'!C30/'User Input Model'!C32 ->  | H9: ='User Input Model'!C31/'User Input Model'!C32 ->  | I9: =SUM(C9:H9) -> 

Sheet Example
A1: Advanced Nuclear Fuel LCOF Estimation Tool | G1: Key
A2: User Input Model | G2: User input fields
A3: Name for proposed fuel: | B3: Proposed TRU fuel | C3: <Enter your fuel name here | G3: Reference data sets
A4: Select a TRU Fuel Reference dataset: | B4: Metal fuel | C4: <Select from the reference datasets available | G4: Metal fuel
G5: Ceramic fuel
A6: 1) User inputs
A7: Value description | B7: Units | C7: =B3 -> Proposed TRU fuel | D7: Reference | E7: Notes
A8: Fuel mass fraction - U | B8: kg U/kg fuel | C8: =D8 -> 0.7 | D8: ='TRU Fuel References'!C8 -> 0.7
A9: Fuel mass fraction - Pu | B9: kg Pu/kg fuel | C9: 0.16 | D9: ='TRU Fuel References'!C9 -> 0.2
A10: Fuel mass fraction - Other nuclear material | B10: kg other/kg fuel | C10: 0.04 | D10: 0
A11: Feedstock fraction - U | B11: kg U/kg SNF | C11: =D11 -> 0.95 | D11: 0.95
A12: Feedstock fraction - Pu | B12: kg Pu/kg SNF | C12: =0.02 -> 0.02 | D12: 0.01
A13: Feedstock fraction - Other nuclear material | B13: kg other/kg SNF | C13: =0.04 -> 0.04 | D13: 0.04
A14: Total fuel in reactor core | B14: kg fuel/core | C14: 2800 | D14: 3010
A15: Recycled SNF storage | B15: USD/kg SNF | C15: 550 | D15: ='TRU Fuel References'!C24 -> 1239.75
A16: Reprocessing | B16: USD/kg SNF | C16: 1800 | D16: ='TRU Fuel References'!C63 -> 2610
A17: Fabrication | B17: USD/kg HM | C17: 950 | D17: =IF($B$4=$G$5,'TRU Fuel References'!C64,IF(B4=G4,'TRU Fuel References'!C27-Example!D16,0)) -> 783
A18: Fabrication material efficiency | B18: material out/material in | C18: =D18 -> 0.9 | D18: 0.9
A19: Fuel burnup | B19: GWd/ton | C19: 165 | D19: 150
A20: Thermal efficiency | B20: percent | C20: 50 | D20: 45
A22: 2) Calculations (Do not edit)
A23: Value description | B23: Units | C23: =B3 -> Proposed TRU fuel | D23: Reference | E23: Notes
A24: Fuel mass input - U | B24: kg U/core | C24: =C8*C14 -> 1960 | D24: =D8*D14 -> 2107
A25: Fuel mass input - Pu | B25: kg Pu/core | C25: =C9*C14 -> 448 | D25: =D9*D14 -> 602
A26: Fuel mass input - Other nuclear material | B26: kg other/core | C26: =C10*C14 -> 112 | D26: =D10*D14 -> 0
A27: SNF needed to meet material input requirements | B27: kg SNF/kg fuel | C27: =IF(C9>0,IF(C10>0,MAX(C8/C11,C9/C12,C10/C13),MAX(C8/C11,C9/C12)),IF(C10>0,MAX(C10/C13,C8/C11),C8/C11)) -> 8 | D27: =D9/D12 -> 20
A28: HM mass to be reprocessed, lifetime | B28: kg SNF/core | C28: =C27*C14 -> 22400 | D28: =D27*D14 -> 60200
A29: Recycled SNF storage, lifetime | B29: USD/core | C29: =C15*C28 -> 12320000 | D29: =D15*D28 -> 74632950
A30: Reprocessing, lifetime | B30: USD/core | C30: =C28*C16 -> 40320000 | D30: =D28*D16 -> 157122000
A31: Fabrication, lifetime | B31: USD/core | C31: =C17*SUM(C24:C26)/C18 -> 2660000 | D31: =D17*SUM(D24:D25)/D18 -> 2356830
A32: Energy production per core | B32: MWh/core | C32: =C19*C14*24*C20/100 -> 5544000 | D32: =D19*(D24+D25)/SUM(D8:D9)*24*D20/100 -> 4876200
A33: Total cost through fabrication | B33: USD/core | C33: =SUM(C29,C30,C31) -> 55300000 | D33: =SUM(D29,D30,D31) -> 234111780
A34: LCOF in 2025 dollars | B34: USD/MWh | C34: =C33/C32 -> 9.974747475 | D34: =D33/D32 -> 48.01111111

Sheet TRU Fuel References
A1: Advanced Nuclear Fuel LCOF Estimation Tool
A2: TRU Fuel Reference Data
B3: Cumulative inflation from 2017 to 2025 | C3: 30.5 | F3: % | G3: Inflation Calculator | Find US Dollar's Value From 1913-2025
B5: TRU Metal Fuel (Example: U-Pu-Zr)
B6: Value description | C6: Default | D6: Upper | E6: Lower | F6: Units | G6: Source | H6: Notes
B7: Reactor lifetime | C7: 50 | F7: years | G7: Assumption
B8: Fuel mass fraction - U | C8: 0.7 | F8: kg U/kg fuel | G8: Assumption
B9: Fuel mass fraction - Pu | C9: 0.2 | F9: kg Pu/kg fuel | G9: Assumption
B10: Fuel mass fraction - Zr | C10: 0.1 | F10: kg Zr/kg fuel | G10: Assumption
B11: Total fuel in reactor core | C11: 3000 | F11: kg fuel/assembly | G11: Assumption
B12: Fuel cycle | C12: 100 | F12: days | G12: Assumption
B13: Cycles per lifetime | C13: =C7*365/$C12 -> 182.5 | F13: cycles/lifetime | G13: Calculated
B14: Fuel mass input - U | C14: =$C8*C$11*C$13 -> 383250 | F14: kg U/lifetime | G14: Calculated
B15: Fuel mass input - Pu | C15: =$C9*C$11*C$13 -> 109500 | F15: kg Pu/lifetime | G15: Calculated
B16: Fuel mass input - Zr | C16: =$C10*C$11*C$13 -> 54750 | F16: kg Zr/lifetime | G16: Calculated
B17: SNF utilization for U | C17: 1 | F17: kg SNF/kg U input | G17: Assumption | H17: Assuming 100% of U supply comes from SNF
B18: Feedstock Pu fraction - High-Pu feedstock | C18: 0.2 | F18: kg Pu/kg SNF | G18: Assumption | H18: Assuming feedstock has at least 20% Pu
B19: Feedstock Pu fraction - SNF feedstock | C19: 0.01 | F19: kg Pu/kg SNF | G19: Assumption | H19: Assuming conventional SNF feedstock
B20: SNF utilization for Pu - High-Pu feedstock | C20: =C9/C18 -> 1 | F20: kg SNF/kg fuel | G20: Calculated
B21: SNF utilization for Pu - SNF feedstock | C21: =C9/C19 -> 20 | F21: kg SNF/kg fuel | G21: Calculated
B22: HM mass to be reprocessed, lifetime - High-Pu feedstock | C22: =IF(1/C18>1/C17,C15/C18,C14/C17) -> 547500 | F22: kg HM from SNF/lifetime | G22: Calculated | H22: amount of input material that requires reprocessing
B23: HM mass to be reprocessed, lifetime - SNF feedstock | C23: =IF(1/C19>1/C17,C15/C19,C14/C17) -> 10950000 | F23: kg HM from SNF/lifetime | G23: Calculated | H23: amount of input material that requires reprocessing
B24: Recycled combined actinide product storage, Line E3-1b, unit | C24: =950*(1+$C$3/100) -> 1239.75 | D24: =1300*(1+$C$3/100) -> 1696.5 | E24: =712*(1+$C$3/100) -> 929.16 | F24: USD/kg SNF | G24: Adv Fuel Cycle Cost Basis 2017, Table S-1 | H24: Assuming co-location; Default is the middle of 3 values, corrected for 2017 to 2025 inflation
B25: Recycled combined actinide product storage, Line E3-1b, lifetime, HPF | C25: =C24*$C$22 -> 678763125 | D25: =D24*$C$22 -> 928833750 | E25: 508715100 | F25: USD/lifetime | G25: Calculated
B26: Recycled combined actinide product storage, Line E3-1b, lifetime, SNF | C26: =C24*$C$23 -> 13575262500 | D26: =D24*$C$23 -> 18576675000 | E26: =E24*$C$23 -> 10174302000 | F26: USD/lifetime | G26: Calculated
B27: Reprocessing - Electrochemical & RH Fuel Recycle (incl. refabrication), Line F2/D2, unit | C27: =2600*(1+$C$3/100) -> 3393 | D27: =3200*(1+$C$3/100) -> 4176 | E27: =2000*(1+$C$3/100) -> 2610 | F27: USD/kg HM | G27: Adv Fuel Cycle Cost Basis 2017, Table S-1 | H27: corrected for 2017 to 2025 inflation
B28: Reprocessing, unit | C28: =2000*(1+$C$3/100) -> 2610 | F28: USD/kg HM | G28: Assumption | H28: based on typical aqueous reprocessing costs in Adv Fuel Cycle Cost Basis 2017, Table S-1. Applicants may utilize reprocessing costs developed through CURIE program
B29: Refabrication, unit | C29: =C27-C28 -> 783 | F29: USD/kg HM | G29: Calculated
B30: Reprocessing, lifetime, HPF | C30: =C28*$C$22 -> 1428975000 | D30: =D27*$C$22 -> 2286360000 | E30: =E27*$C$22 -> 1428975000 | F30: USD/lifetime | G30: Calculated
B31: Reprocessing, lifetime, SNF | C31: =C28*$C$23 -> 28579500000 | D31: =D27*$C$23 -> 45727200000 | E31: =E27*$C$23 -> 28579500000 | F31: USD/lifetime | G31: Calculated
B32: Fabrication efficiency | C32: 0.9 | F32: material out/material in | G32: Placeholder
B33: Refabrication, lifetime | C33: =C29*SUM(C14:C15)/C32 -> 428692500 | D33: =C29*SUM(D14:D15)/C32 -> 0 | E33: =C29*SUM(E14:E15)/C32 -> 0 | F33: USD/lifetime | G33: Calculated
B34: Fuel burnup | C34: 150 | D34: 200 | E34: 50 | F34: GWd/ton | G34: Assumption | H34: https://fuelcycleoptions.inl.gov/SiteAssets/SitePages/Home/182926.pdf
B35: Thermal efficiency | C35: 45 | D35: 50 | E35: 45 | F35: percent | G35: Assumption | H35: Notes from meeting with NPD team
B36: Lifetime energy production | C36: =C34*(C14+C15+C16)*24*C35/100 -> 886950000 | D36: =D34*(C14+C15+C16)*24*D35/100 -> 1314000000 | E36: =E34*(C14+C15+C16)*24*C35/100 -> 295650000 | F36: MWh/lifetime | G36: Calculated
B37: Total lifetime cost through fabrication | C37: =SUM(C26,C31,C33) -> 42583455000 | D37: =SUM(D26,D31,D33) -> 64303875000 | E37: =SUM(E26,E31,E33) -> 38753802000 | F37: USD/lifetime | G37: Calculated
B38: LCOF in 2025 dollars | C38: =C37/$C$36 -> 48.01111111 | D38: =D37/$E$36 -> 217.5 | E38: =E37/$D$36 -> 29.493 | F38: USD/MWh | G38: Calculated
B40: TRU Ceramic Fuel (Pu)
B41: Value description | C41: Default | D41: Upper | E41: Lower | F41: Units | G41: Source | H41: Notes
B42: Reactor lifetime | C42: 50 | F42: years | G42: Assumption
B43: Fuel mass fraction - U | C43: 0.7 | F43: kg U/kg fuel | G43: Assumption
B44: Fuel mass fraction - Pu | C44: 0.2 | F44: kg Pu/kg fuel | G44: Assumption
B45: Fuel mass fraction - Other | C45: 0.1 | F45: kg other/kg fuel | G45: Assumption
B46: Total fuel in reactor core | C46: 3000 | F46: kg fuel/assembly | G46: Assumption
B47: Fuel cycle | C47: 100 | F47: days | G47: Assumption
B48: Cycles per lifetime | C48: =C42*365/$C47 -> 182.5 | F48: cycles/lifetime | G48: Calculated
B49: Fuel mass input - U | C49: =$C43*C$46*C$48 -> 383250 | F49: kg U/lifetime | G49: Calculated
B50: Fuel mass input - Pu | C50: =$C44*C$11*C$13 -> 109500 | F50: kg Pu/lifetime | G50: Calculated
B51: Fuel mass input - Other | C51: =$C45*C$11*C$13 -> 54750 | F51: kg Other/lifetime | G51: Calculated
B52: SNF utilization for U | C52: 0.95 | F52: kg U/kg SNF | G52: Assumption
B53: Feedstock Pu fraction - High-Pu feedstock | C53: 0.2 | F53: kg Pu/kg SNF | G53: Assumption | H53: Assuming feedstock has at least 20% Pu
B54: Feedstock Pu fraction - SNF feedstock | C54: 0.01 | F54: kg Pu/kg SNF | G54: Assumption | H54: Assuming conventional SNF feedstock
B55: SNF utilization for Pu - High-Pu feedstock | C55: =C44/C53 -> 1 | F55: kg SNF/kg fuel | G55: Calculated
B56: SNF utilization for Pu - SNF feedstock | C56: =C44/C54 -> 20 | F56: kg SNF/kg fuel | G56: Calculated
B57: HM mass to be reprocessed, lifetime - High-Pu feedstock | C57: =IF(1/C53>1/C52,C50/C53,C49/C52) -> 547500 | F57: kg HM from SNF/lifetime | G57: Calculated | H57: amount of input material that requires reprocessing
B58: HM mass to be reprocessed, lifetime - SNF feedstock | C58: =IF(1/C54>1/C52,C50/C54,C49/C52) -> 10950000 | F58: kg HM from SNF/lifetime | G58: Calculated | H58: amount of input material that requires reprocessing
B59: Fresh enriched uranium input | C59: =C49*(1-C52) -> 19162.5 | F59: kg U/lifetime | G59: Calculated | H59: Assuming all Pu comes from TRU
B60: Recycled combined actinide product storage, Line E3-1b, unit | C60: =950*(1+$C$3/100) -> 1239.75 | D60: =1300*(1+$C$3/100) -> 1696.5 | E60: =712*(1+$C$3/100) -> 929.16 | F60: USD/kg SNF | G60: Adv Fuel Cycle Cost Basis 2017, Table S-1 | H60: Assuming co-location; Default is the middle of 3 values, corrected for 2017 to 2025 inflation
B61: Recycled combined actinide product storage, Line E3-1b, lifetime, HPF | C61: =C60*$C$22 -> 678763125 | D61: =D60*$C$57 -> 928833750 | E61: =E60*$C$57 -> 508715100 | F61: USD/lifetime | G61: Calculated
B62: Recycled combined actinide product storage, Line E3-1b, lifetime, SNF | C62: =C60*$C$23 -> 13575262500 | D62: =D60*$C$58 -> 18576675000 | E62: =E60*$C$58 -> 10174302000 | F62: USD/lifetime | G62: Calculated
B63: Reprocessing, unit | C63: =2000*(1+$C$3/100) -> 2610 | F63: USD/kg HM | G63: Assumption | H63: based on typical aqueous reprocessing costs in Adv Fuel Cycle Cost Basis 2017, Table S-1. Applicants may utilize reprocessing costs developed through CURIE program
B64: Gas-cooled reactor particle fuel fabrication cost, unit | C64: =10900*(1+$C$3/100) -> 14224.5 | D64: =29400*(1+$C$3/100) -> 38367 | E64: =3300*(1+$C$3/100) -> 4306.5 | F64: USD/kg HM | G64: Adv Fuel Cycle Cost Basis 2017, Table S-1 | H64: Default is middle of three values
B65: Reprocessing, lifetime, HPF | C65: =C63*$C$57 -> 1428975000 | F65: USD/lifetime | G65: Calculated
B66: Reprocessing, lifetime, SNF | C66: =C63*$C58 -> 28579500000 | F66: USD/lifetime | G66: Calculated
B67: Fabrication efficiency | C67: 0.9 | F67: material out/material in | G67: Placeholder
B68: Ceramic fuel fabrication cost, lifetime | C68: =SUM(C49:C50)/C67*C64 -> 7787913750 | D68: =SUM(C49:C50)/C67*D64*(1+$C$3/100) -> 2.741274191e+10 | E68: =SUM(C49:C50)/C67*E64*(1+$C$3/100) -> 3076940419 | F68: USD/lifetime | G68: Calculated
B69: Fuel burnup | C69: 150 | D69: 200 | E69: 50 | F69: GWd/ton | G69: Assumption | H69: https://fuelcycleoptions.inl.gov/SiteAssets/SitePages/Home/182926.pdf
B70: Thermal efficiency | C70: 45 | D70: 50 | E70: 45 | F70: percent | G70: Assumption
B71: Lifetime energy production | C71: =C69*(C49+C50+C51)*24*C70/100 -> 886950000 | D71: =D69*(C49+C50+C51)*24*D70/100 -> 1314000000 | E71: =E69*(C49+C50+C51)*24*C70/100 -> 295650000 | F71: MWh/lifetime | G71: Calculated
B72: Total lifetime cost through fabrication | C72: =SUM(C62,C66,C68) -> 49942676250 | D72: =SUM(D62,C66,D68) -> 7.456891691e+10 | E72: =SUM(E62,C66,E68) -> 4.183074242e+10 | F72: USD/lifetime | G72: Calculated
B73: LCOF in 2025 dollars | C73: =C72/$C$71 -> 56.30833333 | D73: =D72/$E$71 -> 252.22025 | E73: =E72/$D$71 -> 31.83465938 | F73: USD/MWh | G73: Calculated

Sheet Fresh Fuel References
A1: Advanced Nuclear Fuel LCOF Estimation Tool
A2: Fresh Fuel Reference Data
B3: General
B4: Value description | C4: Default | D4: Upper | E4: Lower | F4: Units | G4: Source(s) | H4: Notes
B5: Production rate | C5: 1000 | F5: MWe | G5: Placeholder
B6: Reactor lifetime | C6: 40 | F6: years | G6: Placeholder
B7: Lifetime energy production | C7: =C5*24*365*C6 -> 350400000 | F7: MWh/lifetime | G7: Calculated
B8: Cumulative inflation from 2017 to 2025 | C8: 30.5 | F8: % | G8: Inflation Calculator | Find US Dollar's Value From 1913-2025
B10: LEU fuel
B11: Value description | C11: Default | D11: Upper | E11: Lower | F11: Units | G11: Source(s) | H11: Notes
B12: Fuel mass fraction - U | C12: 0.94 | F12: kg U/kg UO2 fuel | G12: Placeholder
B13: Natural Uranium Milling and Mining Cost, Line A1, unit | C13: =8120/40.6 -> 200 | D13: =296*(1+$C$8/100) -> 386.28 | E13: =34*(1+$C$8/100) -> 44.37 | F13: USD/kg U | G13: NIA HALEU Cost Report 2023 (default); Adv Fuel Cycle Cost Basis 2017 (upper and lower) | H13: From Table 3 in NIA HALEU Cost Report, Table S-1 in Advanced Fuel Cycle Cost Basis
B14: Natural U input, lifetime | C14: =C15*40.6/4.5 -> 9410177.778 | F14: kg natural U/lifetime | G14: NIA HALEU Cost Report 2023 | H14: 0.71% to 4.95% enrichement (LEU), 40.6 kg new natural enrichment U for every 4.5 kg LEU
B15: Enriched U input, lifetime | C15: 1043000 | F15: kg enriched U/lifetime | G15: NRC Greenhouse Gas Emissions Estimates for a Reference 1,000 MWE Reactor; Abliene Christian University Molten Salt Research Reactor | H15: "1,000 MWe plant is assumed to operate at 35 percent thermal efficiency and use uranium fuel enriched to 5 percent in uranium-235 (235U) with an average burnup of 40,000 megawatt days/MT for 40 years, then it will require about 1,043 tons of enriched uranium for fuel
B16: Natural Uranium Milling and Mining Cost, Line A1, lifetime | C16: =$C$14*C13 -> 1882035556 | D16: =$C$14*D13 -> 3634963472 | E16: =$C$14*E13 -> 417529588 | F16: USD/lifetime | G16: Calculated
B17: Conversion Cost, Line B, unit | C17: =AVERAGE(D17:E17) -> 27.07875 | D17: =1827/40 -> 45.675 | E17: =6.5*(1+$C$8/100) -> 8.4825 | F17: USD/kg U | G17: NIA HALEU Cost Report 2023 (upper); Adv Fuel Cycle Cost Basis 2017 (lower) | H17: Default is mean of two values, corrected for 2017 to 2025 inflation, , Table S-1 in Advanced Fuel Cycle Cost Basis
B18: Conversion Cost, Line B, lifetime | C18: =C17*$C$14 -> 254815851.5 | D18: =D17*$C$14 -> 429809870 | E18: =E17*$C$14 -> 79821833 | F18: USD/lifetime | G18: Calculated
B19: Enrichment, Line C1, unit | C19: =125*(1+$C$8/100) -> 163.125 | D19: =154*(1+$C$8/100) -> 200.97 | E19: =97*(1+$C$8/100) -> 126.585 | F19: USD/SWUs | G19: Adv Fuel Cycle Cost Basis 2017 | H19: Default is mean of two values, corrected for 2017 to 2025 inflation, Table S-1
B20: Separative work units (SWUs) required for enrichment, lifetime | C20: =E20 -> 8263689 | D20: =36.63/4.5*C15 -> 8490020 | E20: =7923*C15/10^3 -> 8263689 | F20: SWUs/lifetime | G20: NIA HALEU Cost Report 2023; NRC Greenhouse Gas Emissions Estimates for a Reference 1,000 MWE Reactor | H20: NIA Report (0.71 to 4.95% enrichment, 36.63 SWUs/4.5 kg LEU), NRC report (0.25 to 5% enrichment, 7923 SWUs/ton enriched U), conservatively assuming the lower value for calculating baseline enrichment cost
B21: Enrichment, Line C1, lifetime | C21: =C19*$C20 -> 1348014268 | D21: =D19*D20 -> 1706239319 | E21: =E19*E20 -> 1046059072 | F21: USD/lifetime | G21: Calculated
B22: LWR UO2 Fuel Fab, PWR: Virgin LEU Cost, Line D1-1-1, unit | C22: =400*(1+$C$8/100) -> 522 | D22: =575*(1+$C$8/100) -> 750.375 | E22: =230*(1+$C$8/100) -> 300.15 | F22: USD/kg HM | G22: Adv Fuel Cycle Cost Basis 2017 | H22: Default is the middle of 3 values, corrected for 2017 to 2025 inflation, Table S-1
B23: LWR UO2 Fuel Fab, PWR: Virgin LEU Cost, Line D1-1-1, lifetime | C23: =C22*$C$15 -> 544446000 | D23: =D22*$C$15 -> 782641125 | E23: 313056450 | F23: USD/lifetime | G23: Calculated
B24: LEU burnup in LWR | C24: 40 | F24: GWd/ton fuel | G24: Pros and Cons Analysis of HALEU Utilization | H24: "once-through Light Water Reactors (OT-LWRs) with <5% low-enriched uranium and 50 GWd/t burnup"
B25: Thermal efficiency | C25: 35 | F25: percent | G25: NRC Greenhouse Gas Emissions Estimates for a Reference 1,000 MWE Reactor; Abliene Christian University Molten Salt Research Reactor | H25: 35% efficiency re: NRC GHG emissions study
B26: Lifetime energy production | C26: =C24*C15/C12*24*C25/100 -> 372817021.3 | F26: MWh/lifetime | G26: Calculated
B27: Total lifetime cost through fabrication | C27: =C16+C18+C21+C23 -> 4029311675 | D27: =D16+D18+D21+D23 -> 6553653786 | E27: =E16+E18+E21+E23 -> 1856466943 | F27: USD/lifetime | G27: Calculated
B28: LCOF in 2025 dollars | C28: =C27/$C$26 -> 10.80774601 | D28: =D27/$C$26 -> 17.57874081 | E28: =E27/$C$26 -> 4.979565946 | F28: USD/MWh | G28: Calculated
B30: HALEU Metal Fuel (U-Zr example)
B31: Value description | C31: Default | D31: Upper | E31: Lower | F31: Units | G31: Source(s) | H31: Notes
B32: Fuel mass fraction - U | C32: 0.9 | F32: kg U/kg U-Zr fuel | G32: Placeholder
B33: Natural Uranium Milling and Mining Cost, Line A1, unit | C33: =8120 -> 8120 | D33: =296*(1+$C$8/100)*40.6 -> 15682.968 | E33: =34*(1+$C$8/100)*40.6 -> 1801.422 | F33: USD/kg enriched U | G33: NIA HALEU Cost Report 2023 (upper and lower); Adv Fuel Cycle Cost Basis 2017 (default) | H33: From Table 3 in NIA HALEU Cost Report
B34: Natural U input, lifetime | C34: =C35*40.6 -> 10613251.14 | F34: kg natural U/lifetime | G34: NIA HALEU Cost Report 2023 | H34: 0.71% to 19.75% enrichment (HALEU), 40.6 kg new natural enrichment U for every 1 kg HALEU
B35: Enriched U input, lifetime | C35: =C15/(19.75/4.95) -> 261410.1266 | F35: kg enriched U/lifetime | G35: Assumption | H35: assumed that only ~1/4 of the uranium is needed for equilvalent-to-UO2 energy output since the enrichment was quadrupled, gets us to a similar lifetime energy production
B36: Natural Uranium Milling and Mining Cost, Line A1, lifetime | C36: =C33*C35 -> 2122650228 | D36: =D33*C35 -> 4099686650 | E36: =E33*C35 -> 470909953 | F36: USD/lifetime | G36: Calculated
B37: Conversion Cost, Line B, unit | C37: =AVERAGE(D37:E37) -> 1085.69475 | D37: =1827 -> 1827 | E37: =6.5*(1+$C$8/100)*40.6 -> 344.3895 | F37: USD/kg enriched U | G37: NIA HALEU Cost Report 2023 (upper); Adv Fuel Cycle Cost Basis 2017 (lower) | H37: From Table 3 in NIA HALEU Cost Report
B38: Conversion Cost, Line B, lifetime | C38: =C37*$C$35 -> 283811602 | D38: =D37*$C$35 -> 477596301.3 | E38: 90026902.79 | F38: USD/lifetime | G38: Calculated
B39: Enrichment, Line C1, unit | C39: =AVERAGE(D39:E39) -> 26952.5 | D39: 42520 | E39: 11385 | F39: USD/kg enriched U | G39: NIA HALEU Cost Report 2023 | H39: Default is mean of two values
B40: Separative work units (SWUs) required for enrichment, lifetime | C40: =42.52*C35 -> 11115158.58 | F40: SWUs/lifetime | G40: NIA HALEU Cost Report 2023 | H40: 0.71 to 19.75% enrichment, 40.6 SWUs/1 kg HALEU
B41: Enrichment, Line C1, lifetime | C41: =C39*$C$35 -> 7045656437 | D41: =D39*$C$35 -> 1.111515858e+10 | E41: =E39*$C$35 -> 2976154291 | F41: USD/lifetime | G41: Calculated
B42: Metal fuel fabrication cost, unit | C42: 600 | F42: USD/kg HM | G42: Assumption | H42: Chose a value similar to the Adv Fuel Cycle Cost Basis' values for contact-handled fabrication of thorium-based fuels
B43: Metal fuel fabrication cost, lifetime | C43: =C42*C35 -> 156846075.9 | F43: USD/lifetime | G43: Calculated
B44: Metal fuel burnup | C44: 150 | D44: 200 | E44: 50 | F44: GWd/ton fuel | G44: Pros and Cons Analysis of HALEU Utilization | H44: https://fuelcycleoptions.inl.gov/SiteAssets/SitePages/Home/182926.pdf
B45: Thermal efficiency | C45: 45 | D45: 50 | E45: 45 | F45: percent | G45: Assumption
B46: Lifetime energy production | C46: =C44*C35/C32*24*C45/100 -> 470538227.8 | D46: =D44*C35/C32*24*C45/100 -> 627384303.8 | E46: =E44*C35/C32*24*C45/100 -> 156846075.9 | F46: MWh/lifetime | G46: Calculated
B47: Total lifetime cost through fabrication | C47: =SUM(C36,C38,C41,C43) -> 9608964343 | D47: =SUM(D36,D38,D41,$C$43) -> 1.584928761e+10 | E47: =SUM(E36,E38,E41,$C$43) -> 3693937223 | F47: USD/lifetime | G47: Calculated
B48: LCOF in 2025 dollars | C48: =C47/$C$46 -> 20.42121931 | D48: =D47/$C$46 -> 33.68331556 | E48: =E47/$C$46 -> 7.850450833 | F48: USD/MWh | G48: Calculated
B50: HALEU Ceramic Fuel
B51: Value description | C51: Default | D51: Upper | E51: Lower | F51: Units | G51: Source(s) | H51: Notes
B52: Fuel mass fraction - U | C52: 0.9 | F52: kg U/kg ceramic fuel | G52: Placeholder | H52: Assuming the rest is MgO - needed to determine tons of fuel input
B53: Natural Uranium Milling and Mining Cost, Line A1, unit | C53: =8120 -> 8120 | D53: =296*(1+$C$8/100)*40.6 -> 15682.968 | E53: =34*(1+$C$8/100)*40.6 -> 1801.422 | F53: USD/kg enriched U | G53: NIA HALEU Cost Report 2023 (upper and lower); Adv Fuel Cycle Cost Basis 2017 (default) | H53: From Table 3 in NIA HALEU Cost Report
B54: Natural U input, lifetime | C54: =C55*40.6 -> 10613251.14 | F54: kg natural U/lifetime | G54: NIA HALEU Cost Report 2023 | H54: 0.71% to 19.75% enrichment (HALEU), 40.6 kg new natural enrichment U for every 1 kg HALEU
B55: Enriched U input, lifetime | C55: =C15/(19.75/4.95) -> 261410.1266 | F55: kg enriched U/lifetime | G55: Assumption | H55: Assumed that only ~1/4 of the uranium is needed for equilvalent-to-UO2 energy output since the enrichment was quadrupled, gets us to a similar lifetime energy production
B56: Natural Uranium Milling and Mining Cost, Line A1, lifetime | C56: =C53*$C$55 -> 2122650228 | D56: =D53*$C$55 -> 4099686650 | E56: 470909953 | F56: USD/lifetime | G56: Calculated
B57: Conversion Cost, Line B, unit | C57: =AVERAGE(D57:E57) -> 1085.69475 | D57: =1827 -> 1827 | E57: =6.5*(1+$C$8/100)*40.6 -> 344.3895 | F57: USD/kg enriched U | G57: NIA HALEU Cost Report 2023 | H57: From Table 3 in NIA HALEU Cost Report
B58: Conversion Cost, Line B, lifetime | C58: =C57*$C$55 -> 283811602 | D58: =D57*$C$35 -> 477596301.3 | E58: 90026902.79 | F58: USD/lifetime | G58: Calculated
B59: Enrichment, Line C1, unit | C59: =AVERAGE(D59:E59) -> 26952.5 | D59: 42520 | E59: 11385 | F59: USD/kg enriched U | G59: NIA HALEU Cost Report 2023 | H59: Default is mean of two values
B60: Separative work units (SWUs) required for enrichment, lifetime | C60: =42.52*C55 -> 11115158.58 | F60: SWUs/lifetime | G60: NIA HALEU Cost Report 2023 | H60: 0.71 to 19.75% enrichment, 40.6 SWUs/1 kg HALEU
B61: Enrichment, Line C1, lifetime | C61: =C59*C55 -> 7045656437 | D61: =D59*$C$35 -> 1.111515858e+10 | E61: =E59*$C$35 -> 2976154291 | F61: USD/lifetime | G61: Calculated
B62: Gas-cooled reactor particle fuel fabrication cost, unit | C62: =10900*(1+$C$8/100) -> 14224.5 | D62: =29400*(1+$C$8/100) -> 38367 | E62: =3300*(1+$C$8/100) -> 4306.5 | F62: USD/kg HM | G62: Adv Fuel Cycle Cost Basis 2017 | H62: Default is the middle of 3 values, corrected for 2017 to 2025 inflation, Table S-1
B63: Fabrication material efficiency | C63: 0.9 | F63: material out/material in | G63: Placeholder
B64: Gas-cooled reactor particle fuel fabrication cost, lifetime | C64: =C62*C55/C63 -> 4131587051 | D64: =D62*C55/C63 -> 1.11439137e+10 | E64: =E62*C55/C63 -> 1250847456 | F64: USD/lifetime | G64: Calculated
B65: Ceramic fuel burnup | C65: 150 | D65: 200 | E65: 50 | F65: GWd/ton fuel | G65: Assumption
B66: Thermal efficiency | C66: 45 | D66: 50 | E66: 45 | F66: percent | G66: Assumption
B67: Lifetime energy production | C67: =C65*'Fresh Fuel References'!C55/C52*24*C66/100 -> 470538227.8 | D67: =D65*'Fresh Fuel References'!C55/C52*24*C66/100 -> 627384303.8 | E67: =E65*'Fresh Fuel References'!C55/C52*24*C66/100 -> 156846075.9 | F67: MWh/lifetime | G67: Calculated
B68: Total lifetime cost through fabrication | C68: =SUM(C56,C58,C61,C64) -> 1.358370532e+10 | D68: =SUM(D56,D58,D61,$C$43) -> 1.584928761e+10 | E68: =SUM(E56,E58,E61,$C$43) -> 3693937223 | F68: USD/lifetime | G68: Calculated
B69: LCOF in 2025 dollars | C69: =C68/$C$67 -> 28.86844153 | D69: =D68/$C$46 -> 33.68331556 | E69: =E68/$C$46 -> 7.850450833 | F69: USD/MWh | G69: Calculated
